fUSD/lending_fUSD_20250311
["ID","MTS","AMOUNT","RATE_DAILY","PERIOD"]
[355938877,1741721456488,-500.0,9.268e-05,2]
[355938878,1741721456498,-590.99,9.268e-05,2]
[355938879,1741721456507,-500.0,9.268e-05,2]
[355938880,1741721456517,-500.0,9.268e-05,2]
[355938881,1741721456530,-500.0,9.268e-05,2]
[355938882,1741721456540,-500.0,9.268e-05,2]
[355938883,1741721456550,-153.37101344,9.268e-05,2]
[355938884,1741721456560,-500.0,9.268e-05,2]
[355938885,1741721456571,-785.83,9.268e-05,2]
[355938886,1741721456581,-500.0,9.268e-05,2]
[355938887,1741721456591,-1077.06,9.268e-05,2]
[355938888,1741721456601,-500.0,9.268e-05,2]
[355938889,1741721456611,-507.14,9.268e-05,2]
[355938890,1741721456622,-560.14422672,9.268e-05,2]
[355938891,1741721456918,-500.0,9.268e-05,2]
[355938892,1741721456928,-1143.68,9.268e-05,2]
[355938893,1741721456938,-632.92,9.268e-05,2]
[355938894,1741721456947,-500.0,9.268e-05,2]
[355938895,1741721456957,-1191.47,9.268e-05,2]
[355938896,1741721456966,-500.0,9.268e-05,2]
[355938897,1741721456975,-500.0,9.268e-05,2]
[355938898,1741721456985,-593.03,9.268e-05,2]
[355938899,1741721456994,-753.68,9.268e-05,2]
[355938900,1741721457004,-500.0,9.268e-05,2]
[355938901,1741721457013,-500.0,9.268e-05,2]
[355938902,1741721457022,-500.0,9.268e-05,2]
[355938903,1741721457031,-500.0,9.268e-05,2]
[355938904,1741721457040,-500.0,9.268e-05,2]
[355938905,1741721457049,-500.0,9.268e-05,2]
[355938906,1741721457058,-500.0,9.268e-05,2]
[355938907,1741721457067,-662.12,9.268e-05,2]
[355938908,1741721457077,-1456.31,9.268e-05,2]
[355938909,1741721457086,-500.0,9.268e-05,2]
[355938910,1741721457095,-1511.7,9.268e-05,2]
[355938911,1741721457104,-500.0,9.268e-05,2]
[355938912,1741721457114,-500.0,9.268e-05,2]
[355938913,1741721457123,-500.0,9.268e-05,2]
[355938914,1741721457132,-500.0,9.268e-05,2]
[355938915,1741721457145,-1565.79,9.268e-05,2]
[355938916,1741721457157,-500.0,9.268e-05,2]
[355938917,1741721457166,-500.0,9.268e-05,2]
[355938918,1741721457176,-500.0,9.268e-05,2]
[355938919,1741721457186,-1842.99,9.268e-05,2]
[355938920,1741721457196,-500.0,9.268e-05,2]
[355938921,1741721457207,-500.0,9.268e-05,2]
[355938922,1741721457217,-500.0,9.268e-05,2]
[355938923,1741721457227,-500.0,9.268e-05,2]
[355938924,1741721457236,-1025.14,9.268e-05,2]
[355938925,1741721457245,-1319.86,9.268e-05,2]
[355938926,1741721457255,-1263.79,9.268e-05,2]
[355938927,1741721457264,-1255.37,9.268e-05,2]
[355938928,1741721457273,-500.0,9.268e-05,2]
[355938929,1741721457282,-500.0,9.268e-05,2]
[355938930,1741721457291,-500.0,9.268e-05,2]
[355938931,1741721457300,-500.0,9.268e-05,2]
[355938932,1741721457309,-674.51,9.268e-05,2]
[355938933,1741721457318,-500.0,9.268e-05,2]
[355938934,1741721457327,-513.85999919,9.268e-05,2]
[355938935,1741721457336,-500.0,9.268e-05,2]
[355938936,1741721457346,-500.0,9.268e-05,2]
[355938937,1741721457355,-230.91553946,9.268e-05,2]
[355938938,1741721457364,-1523.7,9.268e-05,2]
[355938939,1741721457373,-500.0,9.268e-05,2]
[355938940,1741721457382,-1159.4,9.268e-05,2]
[355938941,1741721457391,-500.0,9.268e-05,2]
[355938942,1741721457400,-500.0,9.268e-05,2]
[355938943,1741721457409,-500.0,9.268e-05,2]
[355938944,1741721457419,-572.77,9.268e-05,2]
[355938945,1741721457429,-1724.06,9.268e-05,2]
[355938946,1741721457438,-1118.69,9.268e-05,2]
[355938947,1741721457447,-500.0,9.268e-05,2]
[355938948,1741721457456,-989.82,9.268e-05,2]
[355938949,1741721457465,-500.0,9.268e-05,2]
[355938950,1741721457474,-747.78,9.268e-05,2]
[355938951,1741721457484,-500.0,9.268e-05,2]
[355938952,1741721457493,-500.0,9.268e-05,2]
[355938953,1741721457502,-985.58,9.268e-05,2]
[355938954,1741721457511,-500.0,9.268e-05,2]
[355938955,1741721457521,-500.0,9.268e-05,2]
[355938956,1741721457534,-1681.06,9.268e-05,2]
[355938957,1741721457543,-1050.83,9.268e-05,2]
[355938958,1741721457552,-178.64298005,9.268e-05,2]
[355938959,1741721457562,-1705.77,9.268e-05,2]
[355938960,1741721457573,-677.88,9.268e-05,2]
[355938961,1741721457583,-1347.81,9.268e-05,2]
[355938962,1741721457592,-916.92,9.268e-05,2]
[355938963,1741721457602,-500.0,9.268e-05,2]
[355938964,1741721457612,-500.0,9.268e-05,2]
[355938965,1741721457621,-500.0,9.268e-05,2]
[355938966,1741721457630,-1000.8,9.268e-05,2]
[355938967,1741721457640,-535.43,9.268e-05,2]
[355938968,1741721457649,-2135.31,9.268e-05,2]
[355938969,1741721457659,-1562.81,9.268e-05,2]
[355938970,1741721457668,-500.0,9.268e-05,2]
[355938971,1741721457677,-699.48,9.268e-05,2]
[355938972,1741721457686,-1473.19,9.268e-05,2]
[355938973,1741721457695,-500.0,9.268e-05,2]
[355938974,1741721457704,-500.0,9.268e-05,2]
[355938975,1741721457714,-500.0,9.268e-05,2]
[355938976,1741721457723,-500.0,9.268e-05,2]
[355938977,1741721457732,-500.0,9.268e-05,2]
[355938978,1741721457741,-500.0,9.268e-05,2]
[355938979,1741721457750,-500.0,9.268e-05,2]
[355938980,1741721457759,-1200.49,9.268e-05,2]
[355938981,1741721457768,-632.36,9.268e-05,2]
[355938982,1741721457777,-634.77,9.268e-05,2]
[355938983,1741721457786,-1706.31,9.268e-05,2]
[355938984,1741721457795,-672.08,9.268e-05,2]
[355938985,1741721457805,-906.68,9.268e-05,2]
[355938986,1741721457814,-500.0,9.268e-05,2]
[355938987,1741721457824,-1190.1,9.268e-05,2]
[355938988,1741721457833,-1497.22,9.268e-05,2]
[355938989,1741721457842,-500.0,9.268e-05,2]
[355938990,1741721457852,-500.0,9.268e-05,2]
[355938991,1741721457862,-336.47633116,9.268e-05,2]
[355938992,1741721457871,-500.0,9.268e-05,2]
[355938993,1741721457880,-854.87,9.268e-05,2]
[355938994,1741721457890,-500.0,9.268e-05,2]
[355938995,1741721457899,-544.22,9.268e-05,2]
[355938996,1741721457908,-500.0,9.268e-05,2]
[355938997,1741721457917,-500.0,9.268e-05,2]
[355938998,1741721457926,-500.0,9.268e-05,2]
[355938999,1741721457935,-500.0,9.268e-05,2]
[355939000,1741721457944,-632.47,9.268e-05,2]
[355939001,1741721457954,-1521.18,9.268e-05,2]
[355939002,1741721457963,-500.0,9.268e-05,2]
[355939003,1741721457973,-500.0,9.268e-05,2]
[355939004,1741721457982,-500.0,9.268e-05,2]
[355939005,1741721457991,-500.0,9.268e-05,2]
[355939006,1741721458000,-500.0,9.268e-05,2]
[355939007,1741721458009,-500.0,9.268e-05,2]
[355939008,1741721458018,-670.9,9.268e-05,2]
[355939009,1741721458027,-1599.43,9.268e-05,2]
[355939010,1741721458038,-500.0,9.268e-05,2]
[355939011,1741721458047,-500.0,9.268e-05,2]
[355939012,1741721458056,-500.0,9.268e-05,2]
[355939013,1741721458065,-500.0,9.268e-05,2]
[355939014,1741721458074,-799.24,9.268e-05,2]
[355939015,1741721458083,-500.0,9.268e-05,2]
[355939016,1741721458093,-725.09,9.268e-05,2]
[355939017,1741721458102,-500.0,9.268e-05,2]
[355939018,1741721458111,-782.15,9.268e-05,2]
[355939019,1741721458120,-500.0,9.268e-05,2]
[355939020,1741721458129,-500.0,9.268e-05,2]
[355939021,1741721458138,-500.0,9.268e-05,2]
[355939022,1741721458148,-815.16,9.268e-05,2]
[355939023,1741721458157,-1002.46,9.268e-05,2]
[355939024,1741721458166,-500.0,9.268e-05,2]
[355939025,1741721458175,-500.0,9.268e-05,2]
[355939026,1741721458185,-500.0,9.268e-05,2]
[355939027,1741721458194,-1378.7,9.268e-05,2]
[355939028,1741721458204,-500.0,9.268e-05,2]
[355939029,1741721458213,-500.0,9.268e-05,2]
[355939030,1741721458233,-500.0,9.268e-05,2]
[355939031,1741721458242,-500.0,9.268e-05,2]
[355939032,1741721458251,-500.0,9.268e-05,2]
[355939033,1741721458260,-1644.95,9.268e-05,2]
[355939034,1741721458270,-500.0,9.268e-05,2]
[355939035,1741721458281,-1119.77,9.268e-05,2]
[355939036,1741721458291,-500.0,9.268e-05,2]
[355939037,1741721458300,-1910.9,9.268e-05,2]
[355939038,1741721458309,-1010.33,9.268e-05,2]
[355939039,1741721458318,-552.3436898,9.268e-05,2]
[355939040,1741721458327,-703.49,9.268e-05,2]
[355939041,1741721458336,-788.62,9.268e-05,2]
[355939042,1741721458346,-554.01,9.268e-05,2]
[355939043,1741721458355,-1194.37,9.268e-05,2]
[355939044,1741721458364,-997.64,9.268e-05,2]
[355939045,1741721458373,-500.0,9.268e-05,2]
[355939046,1741721458382,-500.0,9.268e-05,2]
[355939047,1741721458391,-1181.14,9.268e-05,2]
[355939048,1741721458401,-500.0,9.269e-05,2]
[355939049,1741721458410,-500.0,9.269e-05,2]
[355939050,1741721458420,-584.56484211,9.269e-05,2]
[355939051,1741721458429,-819.6,9.269e-05,2]
[355939052,1741721458438,-500.0,9.269e-05,2]
[355939053,1741721458447,-500.0,9.269e-05,2]
[355939054,1741721458456,-1035.12,9.269e-05,2]
[355939055,1741721458466,-1561.82,9.269e-05,2]
[355939056,1741721458475,-633.7,9.269e-05,2]
[355939057,1741721458485,-500.0,9.269e-05,2]
[355939058,1741721458494,-500.0,9.269e-05,2]
[355939059,1741721458503,-500.0,9.269e-05,2]
[355939060,1741721458512,-293.31844608,9.269e-05,2]
[355939061,1741721458522,-500.0,9.269e-05,2]
[355939062,1741721458535,-781.76,9.269e-05,2]
[355939063,1741721458544,-500.0,9.269e-05,2]
[355939064,1741721458553,-448.1160896,9.269e-05,2]
[355939065,1741721458570,-613.3039104,9.269e-05,2]
[355939066,1741721458580,-671.72,9.269e-05,2]
[355939067,1741721458589,-1537.94,9.269e-05,2]
[355939068,1741721458598,-500.0,9.269e-05,2]
[355939069,1741721458608,-500.0,9.269e-05,2]
[355939070,1741721458617,-500.0,9.269e-05,2]
[355939071,1741721458626,-773.45,9.269e-05,2]
[355939072,1741721458636,-12736.086,9.442e-05,2]
[355939073,1741721458645,-1000.0,9.536e-05,2]
[355939074,1741721458654,-56241.43,9.538e-05,2]
[355939075,1741721458663,-22692.2384141,9.539e-05,2]
[355939076,1741721460556,-486.53,0.000386,30]
[355939077,1741721460589,-2167.53421,0.00046688,30]
[355939078,1741721460616,-200.0,0.00046719,120]
[355939079,1741721460641,-1100.0,0.00046849,120]
[355939080,1741721460668,-717.37,0.00046849,120]
[355939081,1741721460695,-2167.53421,0.00046888,30]
[355939082,1741721460721,-1062.0,0.0004698,30]
[355939083,1741721460747,-209.0,0.0004698,30]
[355939084,1741721460774,-207.0,0.0004698,30]
[355939085,1741721460800,-218.0,0.0004698,30]
[355939086,1741721460826,-207.0,0.0004698,30]
[355939087,1741721460853,-207.0,0.0004698,30]
[355939088,1741721460879,-207.0,0.0004698,30]
[355939089,1741721460905,-1100.0,0.00047123,120]
[355939090,1741721460933,-200.0,0.00047332,120]
[355939091,1741721460961,-150.0,0.00047394,120]
[355939092,1741721460990,-1100.0,0.00047397,120]
[355939093,1741721461017,-500.0,0.00047397,120]
[355939094,1741721461044,-217.36187515,0.000475,120]
[355939095,1741721461070,-717.37,0.00047671,120]
[355939096,1741721461097,-1757.32,0.00047841,120]
[355939097,1741721461123,-304.21303997,0.0004788,100]
[355939098,1741721461149,-944.06837619,0.000479,30]
[355939099,1741721461175,-200.0,0.00047944,120]
[355939100,1741721461202,-1100.0,0.00047945,120]
[355939101,1741721461229,-1000.0,0.00047999,120]
[355939102,1741721461255,-156.77559483,0.00048,120]
[355939103,1741721461281,-2059.17280721,0.00048,120]
[355939104,1741721461306,-527212.49751541,0.00048,120]
[355939105,1741721461331,-500.0,0.00048219,120]
[355939106,1741721461356,-372.50419,0.000483,120]
[355939107,1741721461381,-1000000.0,0.0004844,30]
[355939108,1741721461406,-1100.0,0.00048493,120]
[355939109,1741721461431,-717.37,0.00048493,120]
[355939110,1741721461456,-200.0,0.00048556,120]
[355939111,1741721461482,-577.797126,0.000486,120]
[355939112,1741721461507,-1150.76881119,0.000488,120]
[355939113,1741721461535,-849.56369056,0.000488,120]
[355939114,1741721461560,-249.16736399,0.0004888,120]
[355939115,1741721461586,-1167.27890947,0.000489,120]
[355939116,1741721461611,-219.0,0.0004899,30]
[355939117,1741721461638,-207.0,0.0004899,30]
[355939118,1741721461664,-209.0,0.0004899,30]
[355939119,1741721461690,-207.0,0.0004899,30]
[355939120,1741721461716,-218.0,0.0004899,30]
[355939121,1741721461744,-207.0,0.0004899,30]
[355939122,1741721461771,-207.0,0.0004899,30]
[355939123,1741721461798,-207.0,0.0004899,30]
[355939124,1741721461825,-1000.0,0.00048999,120]
[355939125,1741721461852,-751.54673749,0.00049,30]
[355939126,1741721461877,-155.5202631,0.00049,60]
[355939127,1741721461901,-258.53120796,0.00049,120]
[355939128,1741721461928,-150.0,0.00049011,120]
[355939129,1741721461955,-1100.0,0.00049041,120]
[355939130,1741721461980,-500.0,0.00049041,120]
[355939131,1741721462007,-150.0,0.00049082,120]
[355939132,1741721462032,-200.0,0.00049169,120]
[355939133,1741721462058,-183.698,0.00049221,120]
[355939134,1741721462085,-183.699,0.00049221,120]
[355939135,1741721462111,-183.699,0.00049221,120]
[355939136,1741721462138,-183.699,0.00049221,120]
[355939137,1741721462163,-239.67106311,0.00049315,120]
[355939138,1741721462190,-500.0,0.00049315,120]
[355939139,1741721462216,-717.37,0.00049315,120]
[355939140,1741721462246,-900.0,0.00049315,22]
[355939141,1741721462272,-900.0,0.00049315,22]
[355939142,1741721462297,-151.0,0.00049315,14]
[355939143,1741721462322,-151.0,0.00049315,14]
[355939144,1741721462347,-151.0,0.00049315,14]
[355939145,1741721462372,-151.0,0.00049315,14]
[355939146,1741721462397,-151.0,0.00049315,14]
[355939147,1741721462423,-151.0,0.00049315,14]
[355939148,1741721462449,-151.0,0.00049315,14]
[355939149,1741721462475,-151.0,0.00049315,14]
[355939150,1741721462504,-151.0,0.00049315,14]
[355939151,1741721462533,-151.0,0.00049315,14]
[355939152,1741721462561,-151.0,0.00049315,14]
[355939153,1741721462588,-151.0,0.00049315,14]
[355939154,1741721462615,-151.0,0.00049315,14]
[355939155,1741721462641,-151.0,0.00049315,14]
[355939156,1741721462668,-151.0,0.00049315,14]
[355939157,1741721462694,-151.0,0.00049315,14]
[355939158,1741721462721,-151.0,0.00049315,14]
[355939159,1741721462752,-151.0,0.00049315,14]
[355939160,1741721462778,-151.0,0.00049315,14]
[355939161,1741721462804,-151.0,0.00049315,14]
[355939162,1741721462831,-151.0,0.00049315,14]
[355939163,1741721462857,-151.0,0.00049315,14]
[355939164,1741721462883,-151.0,0.00049315,14]
[355939165,1741721463108,-151.0,0.00049315,14]
[355939166,1741721463138,-151.0,0.00049315,14]
[355939167,1741721463170,-151.0,0.00049315,14]
[355939168,1741721463198,-151.0,0.00049315,14]
[355939169,1741721463224,-151.0,0.00049315,14]
[355939170,1741721463254,-151.0,0.00049315,14]
[355939171,1741721463281,-151.0,0.00049315,14]
[355939172,1741721463309,-151.0,0.00049315,14]
[355939173,1741721463340,-151.0,0.00049315,14]
[355939174,1741721463368,-151.0,0.00049315,14]
[355939175,1741721463395,-151.0,0.00049315,14]
[355939176,1741721463423,-151.0,0.00049315,14]
[355939177,1741721463448,-151.0,0.00049315,14]
[355939178,1741721463475,-151.0,0.00049315,14]
[355939179,1741721463503,-151.0,0.00049315,14]
[355939180,1741721463532,-182.339709,0.00049315,14]
[355939181,1741721463559,-716.38,0.00049315,30]
[355939182,1741721463587,-150.0,0.00049316,14]
[355939183,1741721463619,-150.0,0.00049316,14]
[355939184,1741721463647,-350.0,0.000494,120]
[355939185,1741721463676,-375.0,0.000494,120]
[355939186,1741721463709,-1062.0,0.00049452,30]
[355939187,1741721463738,-1100.0,0.00049589,120]
[355939188,1741721463765,-150.0,0.0004968,20]
[355939189,1741721463792,-150.0,0.00049741,120]
[355939190,1741721463820,-200.0,0.00049781,120]
[355939191,1741721463847,-1461923.77,0.0004986,120]
[355939192,1741721463874,-500.0,0.00049863,120]
[355939193,1741721463900,-500.0,0.00049863,120]
[355939194,1741721463928,-500.0,0.0004988,120]
[355939195,1741721463954,-537.0,0.0004988,120]
[355939196,1741721463982,-2080.75503607,0.00049987,31]
[355939197,1741721464009,-405.10575802,0.00049992,35]
[355939198,1741721464035,-15000.0,0.0005,15]
[355939199,1741721464061,-5710.95,0.0005,14]
[355939200,1741721464086,-1008.45535252,0.0005,33]
[355939201,1741721464112,-913.50523248,0.0005,120]
[355939202,1741721464141,-300.00497447,0.0005,120]
[355939203,1741721464170,-6500.0,0.0005,120]
[355939204,1741721464196,-828.4653793,0.0005,120]
[355939205,1741721464222,-255.85383381,0.0005,120]
[355939206,1741721464249,-1305.47599633,0.0005,120]
[355939207,1741721464276,-1980.70212924,0.0005,120]
[355939208,1741721464302,-166.08414441,0.0005,120]
[355939209,1741721464328,-1026.80175241,0.0005,120]
[355939210,1741721464353,-289.83609394,0.0005,120]
[355939211,1741721464378,-954.38915119,0.0005,120]
[355939212,1741721464405,-200.0,0.0005,120]
[355939213,1741721464433,-372.50419,0.000501,120]
[355939214,1741721464460,-717.37,0.00050136,120]
[355939215,1741721464490,-1100.0,0.00050137,120]
[355939216,1741721464522,-692.76,0.000502,48]
[355939217,1741721464561,-692.76,0.000502,48]
[355939218,1741721464593,-692.76,0.000502,48]
[355939219,1741721464624,-692.76,0.000502,48]
[355939220,1741721464654,-692.76,0.000502,48]
[355939221,1741721464683,-692.76,0.000502,48]
[355939222,1741721464713,-692.76,0.000502,48]
[355939223,1741721464746,-692.76,0.000502,48]
[355939224,1741721464777,-692.76,0.000502,48]
[355939225,1741721464808,-692.76,0.000502,48]
[355939226,1741721464843,-692.76,0.000502,48]
[355939227,1741721464872,-692.76,0.000502,48]
[355939228,1741721464902,-692.76,0.000502,48]
[355939229,1741721464932,-692.76,0.000502,48]
[355939230,1741721464960,-692.76,0.000502,48]
[355939231,1741721464990,-692.76,0.000502,48]
[355939232,1741721465019,-150.0,0.00050223,120]
[355939233,1741721465043,-1979.96,0.00050305,30]
[355939234,1741721465069,-150.0,0.00050384,120]
[355939235,1741721465095,-200.0,0.00050393,120]
[355939236,1741721465120,-507.41057789,0.0005041,120]
[355939237,1741721465146,-200.0,0.000505,120]
[355939238,1741721465172,-835.6772059,0.000505,120]
[355939239,1741721465198,-500.0,0.00050684,120]
[355939240,1741721465224,-1100.0,0.00050685,120]
[355939241,1741721465252,-150.0,0.00050954,120]
[355939242,1741721465278,-717.37,0.00050958,120]
[355939243,1741721465303,-500.0,0.00050959,120]
[355939244,1741721465329,-1000.0,0.00050999,120]
[355939245,1741721465355,-200.0,0.00051,120]
[355939246,1741721465381,-629.0,0.00051,120]
[355939247,1741721465407,-200.0,0.00051006,120]
[355939248,1741721465432,-150.0,0.00051128,30]
[355939249,1741721465458,-150.0,0.00051128,30]
[355939250,1741721465487,-583.70697356,0.00051128,30]
[355939251,1741721465512,-222.13253326,0.00051128,30]
[355939252,1741721465541,-150.0,0.00051128,30]
[355939253,1741721465567,-453.13320343,0.00051128,30]
[355939254,1741721465594,-1100.0,0.00051233,120]
[355939255,1741721465621,-2110.0,0.00051295,30]
[355939256,1741721465648,-200.0,0.000515,120]
[355939257,1741721465674,-300.87578806,0.000515,120]
[355939258,1741721465700,-500.0,0.00051506,120]
[355939259,1741721465917,-500.0,0.00051506,120]
[355939260,1741721465942,-500.0,0.00051506,120]
[355939261,1741721465968,-329.92163908,0.00051506,120]
[355939262,1741721465998,-500.0,0.00051506,120]
[355939263,1741721466024,-500.0,0.00051507,120]
[355939264,1741721466050,-200.0,0.00051618,120]
[355939265,1741721466076,-717.37,0.0005178,120]
[355939266,1741721466102,-1100.0,0.00051781,120]
[355939267,1741721466130,-2110.0,0.00051795,30]
[355939268,1741721466158,-150.0,0.00051872,120]
[355939269,1741721466184,-372.50419,0.000519,120]
[355939270,1741721466210,-1000.0,0.00051999,120]
[355939271,1741721466236,-286.334985,0.00052,120]
[355939272,1741721466261,-157.60977619,0.00052,120]
[355939273,1741721466288,-200.0,0.00052,120]
[355939274,1741721466313,-1000.0,0.00052055,120]
[355939275,1741721466339,-442.15356995,0.00052055,120]
[355939276,1741721469906,150.0,0.000501,120]
[355939277,1741721470250,150.0,0.00050136,120]
[355939278,1741721470296,-171.7,8.992e-05,2]
[355939279,1741721470347,150.0,0.00050137,120]
[355939280,1741721470411,150.0,0.000502,48]
[355939281,1741721470683,150.0,0.00050223,120]
[355939282,1741721470781,150.0,0.00050305,30]
[355939283,1741721470856,150.0,0.00050384,120]
[355939284,1741721470898,444.19,0.00047171,120]
[355939285,1741721470948,112718.08922738,0.00051998,120]
[355939286,1741721470991,150.0,0.00050393,120]
[355939287,1741721471032,415.85,0.00046394,120]
[355939288,1741721471463,150.0,0.0005041,120]
[355939289,1741721471659,150.0,0.000505,120]
[355939290,1741721471755,150.0,0.00050684,120]
[355939291,1741721471876,150.0,0.00050685,120]
[355939292,1741721471918,150.0,0.0005,120]
[355939293,1741721472198,150.0,0.00050954,120]
[355939294,1741721472370,150.0,0.00050958,120]
[355939295,1741721472706,150.0,0.00050959,120]
[355939296,1741721472750,150.0,0.00050036,120]
[355939297,1741721472824,150.0,0.00050037,120]
[355939298,1741721472962,250.0,8.792e-05,2]
[355939299,1741721482669,650.0,8.604e-05,2]
[355939300,1741721482696,22158.16841563,8.604e-05,2]
[355939301,1741721483090,175.58,8.734e-05,2]
[355939302,1741721503956,1792.3,8.464e-05,2]
[355939303,1741721535413,157.88,8.723e-05,2]
[355939304,1741721561617,2500.0,8.893e-05,2]
[355939307,1741721738861,2194.51774536,0.00028512,32]
[355939308,1741721771267,496.36,8.561e-05,2]
[355939309,1741721973713,158.07,8.515e-05,2]
[355939310,1741721973967,158.07,8.576e-05,2]
[355939311,1741721974180,158.07,8.636e-05,2]
[355939312,1741721974387,158.07,8.697e-05,2]
[355939313,1741721974601,158.07,8.758e-05,2]
[355939314,1741721974911,158.07,8.819e-05,2]
[355939315,1741721975019,158.07,8.88e-05,2]
[355939316,1741722034741,30229.2636,8.892e-05,2]
[355939317,1741722050637,1665.69,8.498e-05,2]
[355939318,1741722094380,1259.98,8.219e-05,2]
[355939319,1741722296157,800.72,8.412e-05,2]
[355939320,1741722302773,150.0,0.00028539,30]
[355939321,1741722376931,768.87,8.436e-05,2]
[355939322,1741722390866,1000.0,8.436e-05,2]
[355939323,1741722395461,150.0,0.00028539,30]
[355939324,1741722549456,269.0,0.00028539,30]
[355939335,1741722617815,159.51,6.731e-05,2]
[355939339,1741722632429,-158.07,8.941e-05,2]
[355939340,1741722632439,-252.37835001,8.95e-05,2]
[355939341,1741722632457,-297.62164999,8.95e-05,2]
[355939342,1741722632467,-123.93931001,8.95e-05,2]
[355939343,1741722632479,-26.06068999,8.95e-05,2]
[355939344,1741722632489,-150.0,8.959e-05,2]
[355939345,1741722632498,-103.46431001,8.99e-05,2]
[355939346,1741722632510,-46.53568999,8.99e-05,2]
[355939347,1741722632519,-300.0,8.99e-05,2]
[355939348,1741722632528,-20.30932001,8.991e-05,2]
[355939349,1741722632568,-584.94758973,8.991e-05,2]
[355939350,1741722632598,-869.48309026,8.991e-05,2]
[355939351,1741722632608,-914.2,8.991e-05,2]
[355939352,1741722632617,-757.4,8.991e-05,2]
[355939353,1741722632626,-500.0,8.991e-05,2]
[355939354,1741722632635,-1328.81,8.991e-05,2]
[355939355,1741722632645,-1710.75,8.991e-05,2]
[355939356,1741722632654,-947.96,8.991e-05,2]
[355939357,1741722632663,-500.0,8.991e-05,2]
[355939358,1741722632672,-500.0,8.991e-05,2]
[355939359,1741722632681,-500.0,8.991e-05,2]
[355939360,1741722632690,-500.0,8.991e-05,2]
[355939361,1741722632700,-464.23442169,8.991e-05,2]
[355939400,1741722633708,-150.0,8.991e-05,2]
[355939402,1741722637955,-535.26542884,8.991e-05,2]
[355939403,1741722638063,-311.13014947,8.991e-05,2]
[355939404,1741722638073,-253.45437772,8.991e-05,2]
[355939405,1741722638085,-246.54562228,8.991e-05,2]
[355939406,1741722638094,-784.89500965,8.991e-05,2]
[355939407,1741722638106,-883.50499035,8.991e-05,2]
[355939408,1741722638116,-71.44783605,8.991e-05,2]
[355939409,1741722638127,-1298.40216395,8.991e-05,2]
[355939410,1741722638137,-500.0,8.991e-05,2]
[355939411,1741722638147,-500.0,8.991e-05,2]
[355939412,1741722638156,-500.0,8.991e-05,2]
[355939413,1741722638166,-1570.43,8.991e-05,2]
[355939414,1741722638176,-929.02,8.991e-05,2]
[355939415,1741722638186,-988.68,8.991e-05,2]
[355939416,1741722638196,-557.98,8.991e-05,2]
[355939417,1741722638205,-867.77,8.991e-05,2]
[355939418,1741722638215,-638.96099758,8.991e-05,2]
[355939420,1741722638244,-322.77900242,8.991e-05,2]
[355939421,1741722638253,-500.0,8.991e-05,2]
[355939422,1741722638263,-852.7,8.991e-05,2]
[355939423,1741722638272,-411.44599758,8.991e-05,2]
[355939425,1741722638284,-88.55400242,8.991e-05,2]
[355939426,1741722638293,-685.4,8.991e-05,2]
[355939427,1741722638303,-916.52,8.991e-05,2]
[355939428,1741722638312,-500.0,8.991e-05,2]
[355939429,1741722638321,-839.5,8.991e-05,2]
[355939431,1741722638330,-500.0,8.991e-05,2]
[355939433,1741722638340,-500.0,8.991e-05,2]
[355939434,1741722638348,-500.0,8.991e-05,2]